bitfinex-derivatives/quotes_BTCF0:USTF0_20250814
["timestamp","ask_amount","ask_price","bid_price","bid_amount"]
[1755155966016,0.11177,121820.0,121810.0,0.89240303]
[1755155966214,0.11177,121820.0,121810.0,0.48413545]
[1755155966414,0.52003758,121820.0,121810.0,0.47019545]
[1755155966711,0.11177,121820.0,121810.0,1.23675545]
[1755155966913,0.11177,121820.0,121810.0,1.23671545]
[1755155967112,0.11177,121820.0,121810.0,0.47019545]
[1755155967411,0.52003758,121820.0,121810.0,1.23671545]
[1755155967612,0.11177,121820.0,121810.0,1.23671545]
[1755155968115,0.11177,121820.0,121810.0,1.2367127]
[1755155968519,0.96369258,121820.0,121810.0,0.0948925]
[1755155968821,1.07369258,121820.0,121810.0,0.8613726]
[1755155969018,0.96369258,121820.0,121810.0,0.8613726]
[1755155969919,0.96369258,121820.0,121810.0,0.0948926]
[1755155970119,1.12787658,121820.0,121810.0,0.8613726]
[1755155970318,1.43787658,121820.0,121810.0,0.0128308]
[1755155970517,1.43787658,121820.0,121810.0,0.0948927]
[1755155970721,1.43787658,121820.0,121790.0,0.1641458]
[1755155970722,0.02237,121800.0,121790.0,0.1641458]
[1755155971018,0.1607586,121800.0,121790.0,0.9305858]
[1755155971320,0.56902618,121800.0,121790.0,0.9305858]
[1755155971520,0.56902618,121800.0,121790.0,0.9305458]
[1755155971917,0.56902618,121800.0,121790.0,0.9325458]
[1755155972116,0.92982618,121800.0,121790.0,0.9345458]
[1755155973424,1.22403418,121800.0,121790.0,0.1681458]
[1755155974109,1.99043418,121800.0,121790.0,0.1681458]
[1755155974314,1.22403418,121800.0,121790.0,0.1681458]
[1755155974517,0.7957666,121800.0,121790.0,0.1681458]
[1755155974722,1.20403418,121800.0,121790.0,0.1681458]
[1755155976225,1.20403418,121800.0,121790.0,0.0860729]
[1755155976424,1.97043418,121800.0,121790.0,0.0860729]
[1755155979424,1.20403418,121800.0,121790.0,0.0860729]
[1755155979629,1.97043418,121800.0,121790.0,0.0860729]
[1755155979830,0.7957666,121800.0,121790.0,0.0860729]
[1755155980129,1.20403418,121800.0,121790.0,0.0860729]
[1755155980929,1.97043418,121800.0,121790.0,0.0860729]
[1755155981333,1.97043418,121800.0,121790.0,0.0989129]
[1755155981722,1.60963418,121800.0,121790.0,0.0989129]
[1755155982130,0.1607586,121800.0,121790.0,0.52772048]
[1755155982324,0.07869,121800.0,121790.0,1.29488048]
[1755155982724,0.07869,121800.0,121790.0,1.30767431]
[1755155983225,0.48695758,121800.0,121790.0,0.01683383]
[1755155983430,1.21403418,121800.0,121790.0,0.01683383]
[1755155983732,1.98035418,121800.0,121790.0,0.01683383]
[1755155984031,1.98035418,121800.0,121790.0,0.004]
[1755155984632,1.81614618,121800.0,121790.0,0.004]
[1755155985833,1.4078786,121800.0,121790.0,0.004]
[1755155986132,1.81614618,121800.0,121790.0,0.004]
[1755155986533,1.4078786,121800.0,121790.0,0.004]
[1755155986735,1.04982618,121800.0,121790.0,0.004]
[1755155986930,0.1140586,121800.0,121790.0,0.54055745]
[1755155987131,0.1607586,121800.0,121790.0,0.13228987]
[1755155987328,0.1607586,121800.0,121790.0,0.89852987]
[1755155987630,0.07869,121800.0,121790.0,0.89852987]
[1755155988836,1.09729376,121800.0,121790.0,0.01683457]
[1755155989136,1.63230176,121800.0,121790.0,0.004]
[1755155989527,0.69902618,121800.0,121790.0,0.004]
[1755155989735,1.05982618,121800.0,121790.0,0.01683446]
[1755155990027,1.82602618,121800.0,121790.0,0.01683446]
[1755155991231,1.82602618,121800.0,121790.0,0.004]
[1755155991429,2.39850176,121800.0,121790.0,0.01683456]
[1755155991628,1.63230176,121800.0,121790.0,0.01683456]
[1755155991831,2.39846176,121800.0,121790.0,0.004]
[1755155992237,1.5819266,121800.0,121790.0,0.01683477]
[1755155992438,2.39846176,121800.0,121790.0,0.01683477]
[1755155995134,2.41783428,121800.0,121790.0,0.01683477]
[1755155999235,2.44117428,121800.0,121790.0,0.01683477]
[1755156000637,2.27696628,121800.0,121790.0,0.01683477]
[1755156001633,1.51080628,121800.0,121790.0,0.01683477]
[1755156001838,2.27680628,121800.0,121790.0,0.01683477]
[1755156003645,1.46027112,121800.0,121790.0,0.01683477]
[1755156003842,2.27680628,121800.0,121790.0,0.01683477]
[1755156004649,1.1025387,121800.0,121790.0,0.09891017]
[1755156004851,1.8684987,121800.0,121790.0,0.09891017]
[1755156005348,1.8684987,121800.0,121790.0,0.12681073]
[1755156005843,0.7568787,121800.0,121790.0,0.14735073]
[1755156006246,0.13654252,121800.0,121790.0,0.17103073]
[1755156006445,0.17191112,121800.0,121790.0,0.17103073]
[1755156006644,0.21966112,121800.0,121790.0,0.17103073]
[1755156006948,0.2002886,121800.0,121790.0,0.17103073]
[1755156007351,0.2002886,121800.0,121790.0,0.17102883]
[1755156008945,0.1861186,121800.0,121790.0,0.17102883]
[1755156009146,0.2002886,121800.0,121790.0,0.53182883]
[1755156010541,0.90511822,121810.0,121800.0,0.1541887]
[1755156010747,0.23755479,121810.0,121800.0,0.16702213]
[1755156010947,0.23755479,121810.0,121800.0,0.16702135]
[1755156011949,0.13605064,121810.0,121800.0,0.52882135]
[1755156012149,0.11794,121810.0,121800.0,0.52882135]
[1755156012953,0.11794,121810.0,121800.0,0.52982135]
[1755156014958,0.02334,121810.0,121800.0,0.52982135]
[1755156015953,0.10377,121820.0,121810.0,0.1541819]
[1755156016154,0.11794,121820.0,121810.0,0.16701455]
[1755156017055,2.09259009,121830.0,121820.0,0.1541752]
[1755156017255,2.20259009,121830.0,121820.0,0.16700665]
[1755156017459,2.61085767,121830.0,121820.0,0.14332665]
[1755156017659,2.63419767,121830.0,121820.0,0.14332665]
[1755156018261,2.63419767,121830.0,121820.0,0.06127145]
[1755156018461,2.63519767,121830.0,121820.0,0.01283145]
[1755156018963,2.63519767,121830.0,121820.0,0.09488665]
[1755156022865,2.63519767,121830.0,121820.0,0.09488645]
[1755156025173,2.63519767,121830.0,121820.0,0.0820552]
[1755156025774,2.63519767,121830.0,121820.0,0.0948865]
[1755156026075,2.22693009,121830.0,121820.0,0.0948865]
[1755156026280,2.63519767,121830.0,121820.0,0.0948865]
[1755156029471,2.63519767,121830.0,121820.0,0.0128313]
[1755156029671,0.1985619,121810.0,121800.0,0.164131]
[1755156029872,0.1985687,121800.0,121790.0,0.2628659]
[1755156030065,0.73683628,121800.0,121790.0,0.2628659]
[1755156030367,0.10236,121810.0,121800.0,0.3190521]
[1755156030672,0.1985619,121810.0,121800.0,0.6798521]
[1755156030870,0.88556758,121820.0,121810.0,0.1192419]
[1755156031067,0.72682278,121820.0,121810.0,0.1549119]
[1755156031777,0.64476758,121820.0,121810.0,0.1549119]
[1755156032074,0.3185552,121820.0,121810.0,0.1549119]
[1755156034273,1.58926949,121830.0,121820.0,0.1382654]
[1755156034478,1.58926949,121830.0,121820.0,0.56317298]
[1755156035070,1.58926949,121830.0,121820.0,0.9199854]
[1755156035270,1.58926949,121830.0,121820.0,0.1549054]
[1755156035876,1.67231819,121830.0,121820.0,0.9199854]
[1755156036076,1.59026949,121830.0,121820.0,0.9199854]
[1755156037182,1.67231819,121830.0,121820.0,0.9199854]
[1755156037575,1.59026949,121830.0,121820.0,0.9199854]
[1755156038383,1.67231819,121830.0,121820.0,0.9199854]
[1755156038778,2.08058577,121830.0,121820.0,0.9199854]
[1755156039086,2.08058577,121830.0,121820.0,0.1549054]
[1755156039383,2.08058577,121830.0,121820.0,0.9199054]
[1755156039886,1.99853707,121830.0,121820.0,0.9199054]
[1755156040084,1.59026949,121830.0,121820.0,0.9199054]
[1755156040578,1.59026949,121830.0,121820.0,0.9198654]
[1755156041383,1.59026949,121830.0,121820.0,1.32813298]
[1755156041580,1.59026949,121830.0,121820.0,1.34096288]
[1755156041789,1.67231819,121830.0,121820.0,0.57600288]
[1755156041984,1.67231819,121830.0,121820.0,0.1677353]
[1755156042185,1.67231819,121830.0,121820.0,0.9326153]
[1755156042487,3.32626577,121830.0,121820.0,0.0128299]
[1755156042786,3.32626577,121830.0,121820.0,0.0948854]
[1755156043287,3.32622577,121830.0,121820.0,0.0948854]
[1755156044784,3.24417707,121830.0,121820.0,0.0948854]
[1755156045088,3.24417707,121830.0,121820.0,0.1077254]
[1755156045289,1.95106949,121830.0,121820.0,0.57600298]
[1755156045489,1.95106949,121830.0,121820.0,1.34080298]
[1755156045694,1.59026949,121830.0,121820.0,1.34080298]
[1755156046286,1.59026949,121830.0,121820.0,0.57600298]
[1755156046689,1.59026949,121830.0,121820.0,1.70156298]
[1755156047083,1.59026949,121830.0,121820.0,1.2932954]
[1755156047282,1.57612949,121830.0,121820.0,0.93680298]
[1755156047489,1.59026949,121830.0,121820.0,1.70156298]
[1755156047689,1.52093949,121830.0,121820.0,1.70156298]
[1755156048280,1.54458949,121830.0,121820.0,1.70156298]
[1755156048485,1.57612949,121830.0,121820.0,1.70156298]
[1755156048685,1.503,121830.0,121820.0,1.70152298]
[1755156048887,0.003,121830.0,121820.0,0.93760298]
[1755156049078,0.003,121830.0,121820.0,1.70228298]
[1755156049284,0.003,121830.0,121820.0,0.93760298]
[1755156049484,0.003,121830.0,121820.0,1.70228298]
[1755156050384,0.003,121830.0,121820.0,0.93760298]
[1755156050585,0.003,121830.0,121820.0,1.70228298]
[1755156051381,0.003,121830.0,121820.0,1.70148298]
[1755156052091,0.003,121830.0,121820.0,1.70148134]
[1755156052291,0.003,121830.0,121820.0,1.29321376]
[1755156052492,0.003,121830.0,121820.0,1.70148134]
[1755156052787,0.1195,121830.0,121820.0,1.29309376]
[1755156053092,0.1195,121830.0,121820.0,1.70136134]
[1755156054591,0.1195,121830.0,121820.0,0.93680134]
[1755156054786,0.1195,121830.0,121820.0,1.70136134]
[1755156055491,0.12112,121830.0,121820.0,1.29309376]
[1755156055697,0.12112,121830.0,121820.0,1.70136134]
[1755156057299,0.12112,121830.0,121820.0,0.57600134]
[1755156057496,0.2031688,121830.0,121820.0,1.29497376]
[1755156057887,0.2031688,121830.0,121820.0,0.93417376]
[1755156058093,0.12112,121830.0,121820.0,0.93417497]
[1755156058592,0.2031688,121830.0,121820.0,0.93417497]
[1755156058787,0.12112,121830.0,121820.0,1.29497497]
[1755156059193,0.12112,121830.0,121820.0,1.70324255]
[1755156059398,0.08466,121830.0,121820.0,0.93880255]
[1755156059603,0.08466,121830.0,121820.0,1.70320255]
[1755156059897,0.08466,121830.0,121820.0,0.93880255]
[1755156060095,0.08466,121830.0,121820.0,1.70320255]
[1755156060701,0.003,121830.0,121820.0,1.70316255]
[1755156061290,0.06156,121830.0,121820.0,0.93880255]
[1755156061495,1.09281638,121830.0,121820.0,0.01282947]
[1755156061793,0.1999623,121810.0,121800.0,0.082069]
[1755156061991,0.04621,121800.0,121790.0,0.7432202]
[1755156062197,0.1179,121800.0,121790.0,1.5075802]
[1755156062900,0.199969,121800.0,121790.0,1.5075802]
[1755156063493,0.199969,121800.0,121790.0,1.4827502]
[1755156063897,0.199969,121800.0,121790.0,0.7203902]
[1755156064095,0.72823658,121800.0,121790.0,1.3205236]
[1755156064603,0.72823658,121800.0,121790.0,1.3225236]
[1755156064797,0.72823658,121800.0,121790.0,1.2932236]
[1755156065003,1.08903658,121800.0,121790.0,0.9324236]
[1755156065303,0.680769,121800.0,121790.0,0.8504305]
[1755156065504,1.08903658,121800.0,121790.0,0.8504305]
[1755156065704,1.08903658,121800.0,121790.0,0.8503905]
[1755156066296,0.680769,121800.0,121790.0,0.8503905]
[1755156066503,1.08903658,121800.0,121790.0,0.8503905]
[1755156067001,1.07903658,121800.0,121790.0,0.8503905]
[1755156067304,0.71823658,121800.0,121790.0,0.0860705]
[1755156067603,0.71823658,121800.0,121790.0,0.8503905]
[1755156067998,1.07903658,121800.0,121790.0,0.8503905]
[1755156068199,1.07903658,121800.0,121790.0,0.8632305]
[1755156068400,1.07903658,121800.0,121790.0,0.8796905]
[1755156068600,0.99696758,121800.0,121790.0,0.8796905]
[1755156068806,0.5887,121800.0,121790.0,0.9250605]
[1755156069106,0.2274,121800.0,121790.0,0.9250605]
[1755156069305,0.6702703,121800.0,121790.0,0.9250605]
[1755156069600,0.2274,121800.0,121790.0,1.33332808]
[1755156069806,0.2274,121800.0,121790.0,0.56900808]
[1755156069999,0.2274,121800.0,121790.0,0.9251005]
[1755156072404,0.17881,121800.0,121790.0,0.9251005]
[1755156072600,0.2274,121800.0,121790.0,0.9251005]
[1755156072802,0.2274,121800.0,121790.0,1.2859005]
[1755156073201,0.2274,121800.0,121790.0,1.69416808]
[1755156074804,0.3094703,121800.0,121790.0,1.69416808]
[1755156075109,0.2274,121800.0,121790.0,1.29868173]
[1755156075498,0.3094702,121800.0,121790.0,1.29868173]
[1755156076001,0.2274,121800.0,121790.0,1.29868173]
[1755156076202,0.11997,121800.0,121790.0,1.2859005]
[1755156076410,0.11997,121800.0,121790.0,1.2986794]
[1755156076602,0.14307,121800.0,121790.0,1.2986794]
[1755156076802,0.2948502,121800.0,121790.0,1.2986794]
[1755156077105,0.3099702,121800.0,121790.0,1.2986794]
[1755156077504,0.3099702,121800.0,121790.0,1.2859005]
[1755156078307,0.3099702,121800.0,121790.0,1.29867832]
[1755156078609,0.3099702,121800.0,121790.0,1.2859005]
[1755156079013,0.65447008,121810.0,121800.0,0.0820703]
[1755156079014,0.2720626,121810.0,121800.0,0.0820703]
[1755156079214,0.3920326,121810.0,121800.0,0.1580403]
[1755156079410,0.3920326,121810.0,121800.0,0.9224003]
[1755156080214,0.3920326,121810.0,121800.0,0.1590403]
[1755156080513,0.3920326,121810.0,121800.0,0.9233603]
[1755156080706,0.3326926,121810.0,121800.0,0.9233603]
[1755156080907,0.3769126,121810.0,121800.0,0.9233603]
[1755156081113,0.3920326,121810.0,121800.0,0.9233603]
[1755156081611,0.3920326,121810.0,121800.0,0.1600403]
[1755156081810,0.11,121810.0,121800.0,0.1600403]
[1755156082001,0.66138733,121820.0,121810.0,0.1580335]
[1755156082199,0.79138733,121820.0,121810.0,0.1580335]
[1755156082815,0.79138733,121820.0,121810.0,0.9223535]
[1755156083207,1.19965491,121820.0,121810.0,0.9223535]
[1755156083808,0.83885491,121820.0,121810.0,0.9223535]
[1755156084014,0.83885491,121820.0,121810.0,0.93514128]
[1755156087322,0.83885491,121820.0,121810.0,0.17082128]
[1755156089421,1.19965491,121820.0,121810.0,0.04258778]
[1755156089927,1.19965491,121820.0,121810.0,0.12465158]
[1755156090316,0.79138733,121820.0,121810.0,0.12465158]
[1755156090718,1.19965491,121820.0,121810.0,0.12465158]
[1755156091330,1.19965491,121820.0,121810.0,0.09485158]
[1755156091724,1.19965491,121820.0,121810.0,0.12415158]
[1755156092227,1.19965491,121820.0,121810.0,0.16899603]
[1755156092929,1.19965491,121820.0,121810.0,0.12418603]
[1755156093826,0.79138733,121820.0,121810.0,0.11084603]
[1755156094020,1.19965491,121820.0,121810.0,0.01282223]
[1755156094631,1.19965491,121820.0,121810.0,0.09488603]
[1755156096933,1.21906167,121820.0,121810.0,0.01282223]
[1755156097127,1.98318167,121820.0,121810.0,0.01282223]
[1755156098033,0.1294137,121810.0,121800.0,0.2462048]
[1755156098235,0.73783128,121810.0,121800.0,0.25902844]
[1755156099830,1.50195128,121810.0,121800.0,0.25902844]
[1755156100139,1.50195128,121810.0,121800.0,0.26002844]
[1755156100336,1.50195128,121810.0,121800.0,0.26102844]
[1755156101328,1.86275128,121810.0,121800.0,0.17895814]
[1755156101731,1.93774701,121810.0,121800.0,0.17895814]
[1755156102432,1.93770701,121810.0,121800.0,0.17895814]
[1755156102833,1.93770701,121810.0,121800.0,0.01482364]
[1755156103138,1.1736295,121810.0,121800.0,0.01482364]
[1755156103333,1.9377095,121810.0,121800.0,0.01483436]
[1755156107035,1.52944192,121810.0,121800.0,0.01483436]
[1755156107237,1.9377095,121810.0,121800.0,0.01483436]
[1755156115147,1.9377495,121810.0,121800.0,0.01483436]
[1755156115537,1.9377495,121810.0,121800.0,0.002]
[1755156117051,1.9377495,121810.0,121800.0,0.001]
[1755156117846,0.0820705,121800.0,121790.0,0.2595695]
[1755156118048,1.10043808,121800.0,121790.0,0.31162374]
[1755156118446,0.6921705,121800.0,121790.0,0.22954724]
[1755156118647,1.10043808,121800.0,121790.0,0.22954724]
[1755156119350,1.10043808,121800.0,121790.0,0.13717538]
[1755156119552,1.10043808,121800.0,121790.0,0.12434094]
[1755156120052,1.10043808,121800.0,121790.0,0.13817554]
[1755156120347,1.10043808,121800.0,121790.0,0.12483624]
[1755156120653,1.10043808,121800.0,121790.0,0.11200164]
[1755156121044,1.10043808,121800.0,121790.0,0.1120018]
[1755156121356,0.6921705,121800.0,121790.0,0.1253418]
[1755156121854,1.10043808,121800.0,121790.0,0.13817622]
[1755156122046,1.10043808,121800.0,121790.0,0.12534162]
[1755156122246,1.10043808,121800.0,121790.0,0.14947162]
[1755156122449,1.10043808,121800.0,121790.0,0.13817612]
[1755156123948,1.10043808,121800.0,121790.0,0.02766892]
[1755156124145,1.11983082,121800.0,121790.0,0.02766892]
[1755156124344,1.11982932,121800.0,121790.0,0.02766892]
[1755156124549,1.88582932,121800.0,121790.0,0.02766928]
[1755156124745,1.88582932,121800.0,121790.0,0.01483442]
[1755156124945,2.2950969,121800.0,121790.0,0.01483442]
[1755156125146,0.2013839,121780.0,121770.0,0.2462641]
[1755156125354,0.2013839,121780.0,121770.0,0.1641751]
[1755156125355,1.10045148,121780.0,121770.0,0.1641751]
[1755156125546,1.86705148,121780.0,121770.0,0.1641751]
[1755156125745,1.86705148,121780.0,121770.0,0.1792651]
[1755156126048,1.86705148,121780.0,121770.0,0.2067651]
[1755156126255,1.86705148,121780.0,121770.0,0.2160851]
[1755156126447,1.93154857,121780.0,121770.0,0.2422151]
[1755156126952,1.86705148,121780.0,121770.0,0.2422151]
[1755156127344,1.86705148,121780.0,121770.0,0.2180851]
[1755156127650,1.86705148,121780.0,121770.0,0.02009]
[1755156128853,1.86705148,121780.0,121770.0,0.1021807]
[1755156129146,1.0979839,121780.0,121770.0,0.1390007]
[1755156129352,1.4587839,121780.0,121770.0,0.1390007]
[1755156129549,0.73965148,121780.0,121770.0,0.1844707]
[1755156129747,0.3313839,121780.0,121770.0,0.1844707]
[1755156129943,0.3313839,121780.0,121770.0,0.59273828]
[1755156130145,0.2120839,121780.0,121770.0,0.59273828]
[1755156130341,0.2120839,121780.0,121770.0,0.1852707]
[1755156130550,0.0968256,121780.0,121770.0,0.95433828]
[1755156130951,0.1545656,121780.0,121770.0,0.95433828]
[1755156131151,0.0724817,121780.0,121770.0,0.95433828]
[1755156131843,0.13855477,121780.0,121770.0,0.95433828]
[1755156132046,0.13855477,121780.0,121770.0,0.95353828]
[1755156132252,0.10559477,121780.0,121770.0,1.72041828]
[1755156132550,0.08081477,121780.0,121770.0,1.3121507]
[1755156132758,0.25387537,121790.0,121770.0,1.88475588]
[1755156132952,0.42698042,121790.0,121780.0,0.179464]
[1755156134058,0.40863235,121790.0,121780.0,0.58773158]
[1755156134458,0.40863235,121790.0,121780.0,0.58973158]
[1755156134858,0.40863235,121790.0,121780.0,0.181464]
[1755156136246,0.41863235,121790.0,121780.0,0.181464]
[1755156136659,0.4844833,121790.0,121780.0,0.183464]
[1755156137058,0.4844833,121790.0,121780.0,0.1961325]
[1755156138457,0.238956,121790.0,121780.0,0.60439958]
[1755156138656,0.01517505,121790.0,121780.0,0.60439958]
[1755156138858,0.7604715,121800.0,121780.0,1.48321368]
[1755156139057,0.6921706,121800.0,121790.0,0.58772488]
[1755156139263,0.6921706,121800.0,121790.0,0.1921253]
[1755156140160,0.3313706,121800.0,121790.0,0.1921253]
[1755156140659,0.3313706,121800.0,121790.0,0.1931253]
[1755156141060,0.3313706,121800.0,121790.0,0.1941253]
[1755156141361,0.39729495,121800.0,121790.0,0.1941253]
[1755156141869,0.41211242,121800.0,121790.0,0.1941253]
[1755156145164,1.18118,121800.0,121790.0,0.1118353]
[1755156145467,1.18118,121800.0,121790.0,0.014668]
[1755156145965,0.77291242,121800.0,121790.0,0.0967453]
[1755156146165,1.18118,121800.0,121790.0,0.0967453]
[1755156146666,0.77291242,121800.0,121790.0,0.0967453]
[1755156146865,1.18118,121800.0,121790.0,0.0967453]
[1755156147567,1.20063558,121800.0,121790.0,0.0967453]
[1755156149367,0.792368,121800.0,121790.0,0.0967453]
[1755156149569,1.20063558,121800.0,121790.0,0.0967453]
[1755156152070,1.96731558,121800.0,121790.0,0.0967453]
[1755156152271,1.96731558,121800.0,121790.0,0.014668]
[1755156152779,0.85462038,121780.0,121770.0,0.0820909]
[1755156152966,1.31542038,121780.0,121770.0,0.09492633]
[1755156154276,1.31542038,121780.0,121770.0,0.09792633]
[1755156155270,1.33486688,121780.0,121770.0,0.01583543]
[1755156155569,1.33486688,121780.0,121760.0,6.342e-05]
[1755156155570,0.0820908,121770.0,121760.0,6.342e-05]
[1755156155765,1.08915838,121770.0,121760.0,6.342e-05]
[1755156155961,1.10862436,121770.0,121760.0,6.342e-05]
[1755156156769,1.10862436,121770.0,121760.0,0.00306342]
[1755156156969,1.10862436,121770.0,121760.0,0.00606342]
[1755156158674,1.10862436,121770.0,121760.0,0.00306342]
[1755156160075,0.2001043,121750.0,121740.0,0.1662154]
[1755156160276,0.72837188,121750.0,121740.0,0.0841077]
[1755156161166,0.72845534,121750.0,121740.0,0.0841077]
[1755156161473,1.85425188,121750.0,121740.0,0.002]
[1755156161666,1.85425188,121750.0,121740.0,0.003]
[1755156161978,1.85525188,121750.0,121740.0,0.003]
[1755156165182,1.8553224,121750.0,121740.0,0.003]
[1755156165383,1.85531175,121750.0,121740.0,0.003]
[1755156165688,1.85525188,121750.0,121740.0,0.003]
[1755156167175,1.85477188,121750.0,121740.0,0.003]
[1755156167383,0.082111,121740.0,121730.0,0.001]
[1755156167588,1.07917858,121740.0,121730.0,0.01384105]
[1755156167989,1.84377858,121740.0,121730.0,0.01384105]
[1755156168597,1.07917858,121740.0,121730.0,0.0148415]
[1755156168798,1.84405858,121740.0,121730.0,0.0148415]
[1755156169293,1.8471569,121740.0,121730.0,0.0138415]
[1755156169498,1.84705858,121740.0,121730.0,0.0138415]
[1755156170396,1.84705858,121740.0,121730.0,0.0168415]
[1755156171290,1.85005858,121740.0,121730.0,0.0138415]
[1755156171490,1.86941375,121740.0,121730.0,0.0138415]
[1755156174684,1.46114617,121740.0,121730.0,0.0138415]
[1755156174890,1.10453375,121740.0,121730.0,0.0138415]
[1755156175196,1.86953773,121740.0,121730.0,0.0138415]
[1755156175390,1.86945375,121740.0,121730.0,0.0138415]
[1755156175594,1.86941375,121740.0,121730.0,0.0138415]
[1755156175790,1.86947876,121740.0,121730.0,0.0138415]
[1755156175993,1.86951207,121740.0,121730.0,0.0138415]
[1755156176192,1.86941375,121740.0,121730.0,0.0138415]
[1755156176388,0.1987872,121730.0,121720.0,0.002]
[1755156176589,1.86528995,121730.0,121720.0,0.002]
[1755156177196,1.93155433,121730.0,121720.0,0.002]
[1755156177398,1.93355433,121730.0,121720.0,0.002]
[1755156177889,1.93555433,121730.0,121720.0,0.002]
[1755156179892,1.94951644,121730.0,121720.0,0.002]
[1755156180200,1.94944844,121730.0,121720.0,0.002]
[1755156180586,0.77310086,121730.0,121720.0,0.002]
[1755156180787,1.94936844,121730.0,121720.0,0.002]
[1755156181097,1.94945289,121730.0,121720.0,0.002]
[1755156181298,1.54110086,121730.0,121720.0,0.002]
[1755156181504,1.94936844,121730.0,121720.0,0.09878]
[1755156181799,1.94936844,121730.0,121720.0,0.12157]
[1755156181989,1.18136844,121730.0,121720.0,0.002]
[1755156182190,1.58963602,121730.0,121720.0,0.01471485]
[1755156182497,2.35839602,121730.0,121720.0,0.01471485]
[1755156182798,2.35835602,121730.0,121720.0,0.01471485]
[1755156185199,0.1293307,121710.0,121700.0,0.0841365]
[1755156185393,1.86534345,121710.0,121700.0,0.002]
[1755156185599,2.24461098,121710.0,121700.0,0.002]
[1755156186191,1.47649098,121710.0,121700.0,0.002]
[1755156186398,1.8363034,121710.0,121700.0,0.07774]
[1755156186597,2.24457098,121710.0,121700.0,0.11243]
[1755156187494,2.24457098,121710.0,121700.0,0.11343]
[1755156187690,2.24457098,121710.0,121700.0,0.07687]
[1755156188399,1.47649098,121710.0,121700.0,0.01584518]
[1755156188599,2.24441098,121710.0,121700.0,0.01584518]
[1755156188800,2.24437098,121710.0,121700.0,0.01584518]
[1755156189104,2.24429098,121710.0,121700.0,0.01584518]
[1755156189299,0.1843103,121680.0,121660.0,0.002]
[1755156189601,0.1843103,121680.0,121660.0,0.05081453]
[1755156189602,2.46789468,121670.0,121660.0,0.05081453]
[1755156189799,2.1596271,121670.0,121660.0,0.002]
[1755156190001,2.58721625,121670.0,121660.0,0.11243]
[1755156190205,3.35521625,121670.0,121660.0,0.12157]
[1755156190396,3.35601625,121670.0,121660.0,0.12157]
[1755156190698,3.35601625,121670.0,121660.0,0.12357]
[1755156191003,3.36995159,121670.0,121660.0,0.12557]
[1755156191198,3.36995159,121670.0,121660.0,0.12357]
[1755156191403,1.66261401,121670.0,121660.0,0.2067332]
[1755156191603,1.78267248,121670.0,121660.0,0.61300078]
[1755156191795,1.82917248,121670.0,121660.0,0.12557]
[1755156191997,1.85214248,121670.0,121660.0,0.2077335]
[1755156192194,1.83282091,121670.0,121660.0,0.12557]
[1755156192396,2.24108849,121670.0,121660.0,0.12557]
[1755156192706,3.37120849,121670.0,121660.0,0.12557]
[1755156192905,3.39042454,121670.0,121660.0,0.006]
[1755156193310,3.39036607,121670.0,121660.0,0.006]
[1755156193609,2.62112607,121670.0,121660.0,0.006]
[1755156193808,2.62112607,121670.0,121660.0,0.07987]
[1755156194009,3.39016607,121670.0,121660.0,0.07987]
[1755156194709,3.3902609,121670.0,121660.0,0.07987]
[1755156194906,3.39026237,121670.0,121660.0,0.07987]
[1755156195099,3.39016607,121670.0,121660.0,0.07987]
[1755156195305,3.38984607,121670.0,121660.0,0.07987]
[1755156196012,3.38984607,121670.0,121660.0,0.04518]
[1755156196316,3.38984607,121670.0,121660.0,0.1273439]
[1755156196611,3.38984607,121670.0,121660.0,0.1620339]
[1755156197204,3.38984607,121670.0,121660.0,0.09215434]
[1755156197404,3.38994499,121670.0,121660.0,0.05746434]
[1755156197609,3.38984607,121670.0,121660.0,0.05746434]
[1755156198414,3.38984607,121670.0,121660.0,0.13962824]
[1755156198913,3.38984607,121670.0,121660.0,0.11683824]
[1755156199212,3.38984607,121670.0,121660.0,0.10044824]
[1755156199410,3.38984607,121670.0,121660.0,0.01828434]
[1755156199608,2.98157849,121670.0,121660.0,0.01828434]
[1755156199808,3.38984607,121670.0,121660.0,0.01828434]
[1755156200210,3.38984607,121670.0,121660.0,0.01846823]
[1755156201310,3.38984607,121670.0,121660.0,0.03131677]
[1755156201717,3.38984607,121670.0,121660.0,0.11348067]
[1755156202807,3.38984607,121670.0,121660.0,0.11348066]
[1755156203008,2.6212175,121670.0,121660.0,0.13627066]
[1755156203206,3.38824607,121670.0,121660.0,0.15245066]
[1755156203409,3.38824607,121670.0,121660.0,0.23305066]
[1755156203410,2.21293599,121670.0,121660.0,0.23305066]
[1755156204018,2.97993599,121670.0,121660.0,0.23305066]
[1755156204620,3.38808357,121670.0,121660.0,0.23305066]
[1755156204916,3.38808357,121670.0,121660.0,0.21907066]
[1755156205616,3.38808357,121670.0,121660.0,0.13690676]
[1755156205816,3.38808357,121670.0,121660.0,0.12776676]
[1755156206017,2.21293599,121670.0,121660.0,0.12776676]
[1755156206222,3.38852357,121670.0,121660.0,0.12776676]
[1755156206415,2.62120357,121670.0,121660.0,0.03131676]
[1755156206718,3.38852357,121670.0,121660.0,0.03131676]
[1755156206917,2.21293599,121670.0,121660.0,0.03131676]
[1755156207122,3.38844357,121670.0,121660.0,0.03131676]
[1755156208322,3.38836607,121670.0,121660.0,0.03131676]
[1755156208913,3.38836607,121670.0,121660.0,0.03133108]
[1755156211121,3.38843709,121670.0,121660.0,0.03133108]
[1755156211317,2.62122449,121670.0,121660.0,0.03133108]
[1755156211619,3.38788607,121670.0,121660.0,0.03133108]
[1755156212426,2.62112607,121670.0,121660.0,0.03133108]
[1755156212717,0.1780339,121660.0,121650.0,0.002]
[1755156212915,0.1296474,121640.0,121630.0,0.2828515]
[1755156213115,0.3075211,121640.0,121630.0,0.2924887]
[1755156213618,0.3075211,121640.0,121630.0,0.1281272]
[1755156213923,1.84282868,121640.0,121630.0,0.1137772]
[1755156214116,1.8427614,121640.0,121630.0,0.0116372]
[1755156214316,1.8427614,121640.0,121630.0,0.002]
[1755156214618,1.86209049,121640.0,121630.0,0.01163847]
[1755156215026,1.86209049,121640.0,121630.0,0.002]
[1755156215225,1.92846313,121640.0,121630.0,0.002]
[1755156216028,1.92846313,121640.0,121630.0,0.008]
[1755156216222,1.52019555,121640.0,121630.0,0.008]
[1755156216517,1.92856582,121640.0,121630.0,0.008]
[1755156216723,0.39315555,121640.0,121630.0,0.60059178]
[1755156217022,0.39323531,121640.0,121630.0,0.61494178]
[1755156217225,0.39323531,121640.0,121630.0,0.2066742]
[1755156217417,0.39320132,121640.0,121630.0,0.2066742]
[1755156219315,0.8014689,121640.0,121630.0,0.2066742]
[1755156219610,1.5670289,121640.0,121630.0,0.0901842]
[1755156219810,0.8014689,121640.0,121630.0,0.2066742]
[1755156220017,0.8014689,121640.0,121630.0,0.2036742]
[1755156220018,1.5670289,121640.0,121630.0,0.2036742]